[Event "Live Chess"]
[Site "Chess.com"]
[Date "2023.05.21"]
[Round "-"]
[White "martynstanley"]
[Black "Duke_of_Bebington"]
[Result "0-1"]
[WhiteElo "1016"]
[BlackElo "1583"]
[TimeControl "300"]
[EndTime "1:05:15 PDT"]
[Termination "Duke_of_Bebington won by checkmate"]

1. d4 {[%clk 0:04:56.7]} 1... d5 {[%clk 0:04:58.1]} 2. e3 {[%clk 0:04:55.2]}
2... Nf6 {[%clk 0:04:54.9]} 3. Bd3 {[%clk 0:04:54.3]} 3... Bd7 {[%clk
0:04:40.5]} 4. c3 {[%clk 0:04:53]} 4... c5 {[%clk 0:04:35.6]} 5. f4 {[%clk
0:04:51.8]} 5... e6 {[%clk 0:04:33.6]} 6. Nf3 {[%clk 0:04:50.3]} 6... Nc6 {[%clk
0:04:31.6]} 7. O-O {[%clk 0:04:48.9]} 7... h6 {[%clk 0:04:29.8]} 8. Ne5 {[%clk
0:04:47.8]} 8... Be7 {[%clk 0:04:19.8]} 9. Rf3 {[%clk 0:04:45.4]} 9... O-O
{[%clk 0:04:17.3]} 10. Rh3 {[%clk 0:04:43.9]} 10... Nh7 {[%clk 0:04:05.9]} 11.
Qe2 {[%clk 0:04:41.1]} 11... cxd4 {[%clk 0:04:03.4]} 12. exd4 {[%clk 0:04:39.7]}
12... Nxe5 {[%clk 0:03:57.3]} 13. fxe5 {[%clk 0:04:38.1]} 13... f6 {[%clk
0:03:56]} 14. Bxh6 {[%clk 0:04:33.4]} 14... gxh6 {[%clk 0:03:55]} 15. Qg4+
{[%clk 0:04:30]} 15... Kh8 {[%clk 0:03:54.4]} 16. Rxh6 {[%clk 0:04:28.1]} 16...
Rf7 {[%clk 0:03:51.5]} 17. Bxh7 {[%clk 0:04:22.1]} 17... Rxh7 {[%clk 0:03:49.5]}
18. Rg6 {[%clk 0:04:17.6]} 18... Qf8 {[%clk 0:03:43.5]} 19. Nd2 {[%clk
0:04:12.7]} 19... fxe5 {[%clk 0:03:42.2]} 20. dxe5 {[%clk 0:04:09.9]} 20... Bc5+
{[%clk 0:03:39.1]} 21. Kh1 {[%clk 0:04:07.5]} 21... Qf7 {[%clk 0:03:32.4]} 22.
h3 {[%clk 0:04:01.1]} 22... Rg8 {[%clk 0:03:29.3]} 23. Rxg8+ {[%clk 0:03:59.5]}
23... Qxg8 {[%clk 0:03:27.8]} 24. Qxg8+ {[%clk 0:03:58.2]} 24... Kxg8 {[%clk
0:03:26.9]} 25. Kh2 {[%clk 0:03:57.2]} 25... Be3 {[%clk 0:03:19.2]} 26. Nf3
{[%clk 0:03:54.7]} 26... Be8 {[%clk 0:03:16.5]} 27. Re1 {[%clk 0:03:52.1]} 27...
Bf4+ {[%clk 0:03:11.6]} 28. g3 {[%clk 0:03:49.2]} 28... Bh6 {[%clk 0:03:10.2]}
29. h4 {[%clk 0:03:42.9]} 29... Bh5 {[%clk 0:03:07.1]} 30. Nd4 {[%clk
0:03:34.8]} 30... Bg4 {[%clk 0:03:01.1]} 31. Nxe6 {[%clk 0:03:32.5]} 31... Bxe6
{[%clk 0:02:59.4]} 32. Kg2 {[%clk 0:03:29.6]} 32... Rf7 {[%clk 0:02:57.5]} 33.
Rf1 {[%clk 0:03:27]} 33... Rxf1 {[%clk 0:02:55.3]} 34. Kxf1 {[%clk 0:03:26]}
34... Bg4 {[%clk 0:02:54.8]} 35. Ke1 {[%clk 0:03:24.5]} 35... Kf7 {[%clk
0:02:54]} 36. b3 {[%clk 0:03:21.6]} 36... Ke6 {[%clk 0:02:53.4]} 37. c4 {[%clk
0:03:20.5]} 37... dxc4 {[%clk 0:02:52.4]} 38. bxc4 {[%clk 0:03:19.4]} 38... Kxe5
{[%clk 0:02:52]} 39. a4 {[%clk 0:03:17.6]} 39... Kd4 {[%clk 0:02:50.9]} 40. c5
{[%clk 0:03:16.6]} 40... Kxc5 {[%clk 0:02:50]} 41. a5 {[%clk 0:03:16]} 41... Kb5
{[%clk 0:02:49.1]} 42. Kf2 {[%clk 0:03:15.8]} 42... Kxa5 {[%clk 0:02:47.9]} 43.
Kg2 {[%clk 0:03:15.5]} 43... b5 {[%clk 0:02:46.4]} 44. Kh2 {[%clk 0:03:15.2]}
44... b4 {[%clk 0:02:45.8]} 45. Kg1 {[%clk 0:03:13.5]} 45... b3 {[%clk
0:02:45.2]} 46. Kf2 {[%clk 0:03:12.9]} 46... b2 {[%clk 0:02:44.4]} 47. Kg2
{[%clk 0:03:12.7]} 47... b1=Q {[%clk 0:02:42.1]} 48. Kf2 {[%clk 0:03:11.5]}
48... Qc2+ {[%clk 0:02:39.4]} 49. Ke1 {[%clk 0:03:08.9]} 49... Qe2# {[%clk
0:02:38.1]} 0-1

[Event "Live Chess"]
[Site "Chess.com"]
[Date "2023.05.21"]
[Round "-"]
[White "f4nomore"]
[Black "mattihelenius2"]
[Result "1-0"]
[WhiteElo "1405"]
[BlackElo "492"]
[TimeControl "300"]
[EndTime "1:05:15 PDT"]
[Termination "f4nomore won by resignation"]

1. d4 {[%clk 0:04:53.1]} 1... Nc6 {[%clk 0:04:57.2]} 2. c3 {[%clk 0:04:51.2]}
2... Nf6 {[%clk 0:04:55.2]} 3. Bg5 {[%clk 0:04:49.4]} 3... d5 {[%clk 0:04:52]}
4. Bxf6 {[%clk 0:04:47.5]} 4... exf6 {[%clk 0:04:50.6]} 5. Nf3 {[%clk
0:04:46.2]} 5... Bg4 {[%clk 0:04:48.6]} 6. e3 {[%clk 0:04:44.9]} 6... Bf5 {[%clk
0:04:45.8]} 7. Bd3 {[%clk 0:04:42.6]} 7... Bxd3 {[%clk 0:04:39.1]} 8. Qxd3
{[%clk 0:04:41]} 8... Qe7 {[%clk 0:04:38.6]} 9. O-O {[%clk 0:04:39.1]} 9... g6
{[%clk 0:04:37.2]} 10. Nbd2 {[%clk 0:04:36.3]} 10... Bh6 {[%clk 0:04:35.6]} 11.
Nb3 {[%clk 0:04:33.2]} 11... O-O {[%clk 0:04:33.7]} 12. Nc5 {[%clk 0:04:28.7]}
12... b6 {[%clk 0:04:19.3]} 13. Na6 {[%clk 0:04:22.4]} 13... Rad8 {[%clk
0:04:05.1]} 14. c4 {[%clk 0:04:18.3]} 14... dxc4 {[%clk 0:04:01.9]} 15. Qxc4
{[%clk 0:04:15.5]} 15... Na5 {[%clk 0:03:58.1]} 16. Qxc7 {[%clk 0:04:00.5]}
16... Rd7 {[%clk 0:03:30.3]} 17. Qg3 {[%clk 0:03:55.7]} 17... Nc4 {[%clk
0:03:13.9]} 18. b3 {[%clk 0:03:50.3]} 18... Nd2 {[%clk 0:03:05.4]} 19. Nxd2
{[%clk 0:03:47.7]} 19... b5 {[%clk 0:02:58.1]} 20. Nc5 {[%clk 0:03:42.5]} 20...
Rd5 {[%clk 0:02:55.1]} 21. Qf3 {[%clk 0:03:34]} 21... f5 {[%clk 0:02:47]} 22.
Qxd5 {[%clk 0:03:29.8]} 22... Rd8 {[%clk 0:02:43.5]} 23. Qf3 {[%clk 0:03:27]}
23... Qg5 {[%clk 0:02:38.3]} 24. Rac1 {[%clk 0:03:22.8]} 24... Rd5 {[%clk
0:02:35.3]} 25. Qxd5 {[%clk 0:03:19.8]} 1-0

[Event "Live Chess"]
[Site "Chess.com"]
[Date "2023.05.21"]
[Round "-"]
[White "raimundklein"]
[Black "friarnator"]
[Result "0-1"]
[WhiteElo "1738"]
[BlackElo "1994"]
[TimeControl "300"]
[EndTime "1:06:12 PDT"]
[Termination "friarnator won by resignation"]

1. e4 {[%clk 0:04:59.2]} 1... Nf6 {[%clk 0:04:58.1]} 2. e5 {[%clk 0:04:57.9]}
2... Nd5 {[%clk 0:04:57.5]} 3. d4 {[%clk 0:04:55.1]} 3... d6 {[%clk 0:04:56.9]}
4. Nf3 {[%clk 0:04:53.5]} 4... Bg4 {[%clk 0:04:55.7]} 5. Be2 {[%clk 0:04:42.9]}
5... e6 {[%clk 0:04:53.9]} 6. O-O {[%clk 0:04:19.6]} 6... Be7 {[%clk 0:04:52.8]}
7. c4 {[%clk 0:04:13.5]} 7... Nb6 {[%clk 0:04:51.5]} 8. h3 {[%clk 0:04:11.5]}
8... Bh5 {[%clk 0:04:49.7]} 9. Nc3 {[%clk 0:04:04.4]} 9... O-O {[%clk
0:04:48.8]} 10. exd6 {[%clk 0:03:56.9]} 10... cxd6 {[%clk 0:04:48.7]} 11. d5
{[%clk 0:03:56.2]} 11... Bxf3 {[%clk 0:04:44.1]} 12. Bxf3 {[%clk 0:03:53.3]}
12... e5 {[%clk 0:04:43.3]} 13. b3 {[%clk 0:03:50.1]} 13... f5 {[%clk
0:04:41.5]} 14. Re1 {[%clk 0:03:27.4]} 14... Bf6 {[%clk 0:04:39.4]} 15. Bb2
{[%clk 0:03:22.7]} 15... N8d7 {[%clk 0:04:38.4]} 16. Nb5 {[%clk 0:03:13.9]}
16... Nc8 {[%clk 0:04:27.1]} 17. Rc1 {[%clk 0:03:05.6]} 17... a6 {[%clk
0:04:26]} 18. Nc3 {[%clk 0:02:49.6]} 18... Ne7 {[%clk 0:04:22.2]} 19. Ba3 {[%clk
0:02:47.6]} 19... Qb8 {[%clk 0:04:16.4]} 20. Na4 {[%clk 0:02:38]} 20... b6
{[%clk 0:04:04.4]} 21. Be2 {[%clk 0:02:21.5]} 21... g5 {[%clk 0:04:00.4]} 22.
Bf1 {[%clk 0:02:18.9]} 22... Ng6 {[%clk 0:03:59.3]} 23. Nb2 {[%clk 0:02:04.6]}
23... e4 {[%clk 0:03:50.8]} 24. Rc2 {[%clk 0:01:51.6]} 24... Re8 {[%clk
0:03:48.8]} 25. Na4 {[%clk 0:01:39.7]} 25... Nc5 {[%clk 0:03:40.5]} 26. Nxc5
{[%clk 0:01:37.4]} 26... bxc5 {[%clk 0:03:39.7]} 27. Bb2 {[%clk 0:01:36.3]}
27... Qd8 {[%clk 0:03:38.6]} 28. Qa1 {[%clk 0:01:30.8]} 28... Kf7 {[%clk
0:03:34.8]} 29. Bxf6 {[%clk 0:01:26]} 29... Qxf6 {[%clk 0:03:34.7]} 30. Qxf6+
{[%clk 0:01:25.1]} 30... Kxf6 {[%clk 0:03:34.6]} 31. a3 {[%clk 0:01:24.3]} 31...
Rab8 {[%clk 0:03:32.4]} 32. Rb2 {[%clk 0:01:23.2]} 32... a5 {[%clk 0:03:28.6]}
33. Reb1 {[%clk 0:01:21.6]} 33... Rb7 {[%clk 0:03:23.7]} 34. b4 {[%clk
0:01:14.5]} 34... Reb8 {[%clk 0:03:22.2]} 35. b5 {[%clk 0:01:13.8]} 35... Rb6
{[%clk 0:03:21.3]} 36. a4 {[%clk 0:01:12.5]} 36... f4 {[%clk 0:03:13.7]} 37. Be2
{[%clk 0:01:10.5]} 37... Re8 {[%clk 0:03:11.3]} 38. f3 {[%clk 0:01:08.9]} 38...
e3 {[%clk 0:03:09.5]} 39. Kf1 {[%clk 0:01:07.2]} 39... Ne7 {[%clk 0:03:06.5]}
40. Ke1 {[%clk 0:01:06.3]} 40... Nf5 {[%clk 0:03:06]} 41. Bd3 {[%clk 0:01:02.8]}
41... Nd4 {[%clk 0:03:02.6]} 42. Rc1 {[%clk 0:00:55.2]} 42... h5 {[%clk
0:03:01.4]} 43. Rc3 {[%clk 0:00:50.2]} 43... Rg8 {[%clk 0:02:59.9]} 44. Be4
{[%clk 0:00:41.4]} 44... Ke5 {[%clk 0:02:58.1]} 45. Rd3 {[%clk 0:00:39.2]} 45...
g4 {[%clk 0:02:55.2]} 46. Rd1 {[%clk 0:00:39.1]} 46... gxf3 {[%clk 0:02:52]} 47.
Bxf3 {[%clk 0:00:37.4]} 47... Nxf3+ {[%clk 0:02:49.8]} 48. gxf3 {[%clk
0:00:36.7]} 48... Rg1+ {[%clk 0:02:49.1]} 49. Ke2 {[%clk 0:00:33.5]} 49... Rg2+
{[%clk 0:02:48.4]} 0-1

[Event "Live Chess"]
[Site "Chess.com"]
[Date "2023.05.21"]
[Round "-"]
[White "Hacker_2009"]
[Black "EPotapov05"]
[Result "1-0"]
[WhiteElo "1910"]
[BlackElo "1390"]
[TimeControl "300"]
[EndTime "1:06:17 PDT"]
[Termination "Hacker_2009 won on time"]

1. d4 {[%clk 0:04:57.7]} 1... d5 {[%clk 0:04:56.8]} 2. Nf3 {[%clk 0:04:55.8]}
2... Nf6 {[%clk 0:04:54.9]} 3. e3 {[%clk 0:04:52.3]} 3... c6 {[%clk 0:04:53]} 4.
c4 {[%clk 0:04:51.2]} 4... Bf5 {[%clk 0:04:45.7]} 5. Nc3 {[%clk 0:04:49.5]} 5...
e6 {[%clk 0:04:44.6]} 6. cxd5 {[%clk 0:04:47]} 6... exd5 {[%clk 0:04:43.3]} 7.
Bd3 {[%clk 0:04:40.2]} 7... Bxd3 {[%clk 0:04:41.2]} 8. Qxd3 {[%clk 0:04:40.1]}
8... Nbd7 {[%clk 0:04:39.9]} 9. O-O {[%clk 0:04:39.6]} 9... Bd6 {[%clk
0:04:38.8]} 10. b3 {[%clk 0:04:39.1]} 10... O-O {[%clk 0:04:36.8]} 11. Bb2
{[%clk 0:04:38.7]} 11... Re8 {[%clk 0:04:36.1]} 12. Rac1 {[%clk 0:04:38.1]}
12... Ne4 {[%clk 0:04:34.4]} 13. Na4 {[%clk 0:04:35]} 13... Rc8 {[%clk
0:04:28.1]} 14. Nc5 {[%clk 0:04:25.4]} 14... Nexc5 {[%clk 0:04:20.8]} 15. dxc5
{[%clk 0:04:23.5]} 15... Nxc5 {[%clk 0:04:06.7]} 16. Qd4 {[%clk 0:04:22.4]}
16... Ne6 {[%clk 0:04:03.2]} 17. Qd2 {[%clk 0:04:19.3]} 17... Bf8 {[%clk
0:03:53.8]} 18. Nd4 {[%clk 0:04:17.9]} 18... Nxd4 {[%clk 0:03:52.3]} 19. Qxd4
{[%clk 0:04:16.5]} 19... a6 {[%clk 0:03:46.2]} 20. Rfd1 {[%clk 0:04:08]} 20...
Re4 {[%clk 0:03:41]} 21. Qd3 {[%clk 0:04:00.3]} 21... Qb6 {[%clk 0:03:25.3]} 22.
Qe2 {[%clk 0:03:52.5]} 22... Rce8 {[%clk 0:03:20.7]} 23. Qf3 {[%clk 0:03:50.4]}
23... Qa5 {[%clk 0:03:13]} 24. a4 {[%clk 0:03:45]} 24... Qb6 {[%clk 0:03:10.8]}
25. Rd3 {[%clk 0:03:42]} 25... Rb4 {[%clk 0:03:07.4]} 26. Bd4 {[%clk 0:03:24.4]}
26... c5 {[%clk 0:02:41.5]} 27. Bc3 {[%clk 0:03:21]} 27... Rxb3 {[%clk
0:02:40.1]} 28. Rxd5 {[%clk 0:03:18.1]} 28... Rb1 {[%clk 0:02:26.3]} 29. Rdd1
{[%clk 0:03:10.6]} 29... Rxc1 {[%clk 0:02:23.8]} 30. Rxc1 {[%clk 0:03:09.6]}
30... Qc7 {[%clk 0:02:08.6]} 31. h3 {[%clk 0:03:06.1]} 31... a5 {[%clk
0:02:06.6]} 32. Qe2 {[%clk 0:02:58]} 32... b6 {[%clk 0:02:05.6]} 33. Qb5 {[%clk
0:02:55.6]} 33... Rd8 {[%clk 0:02:02.4]} 34. Rb1 {[%clk 0:02:51.2]} 34... Bd6
{[%clk 0:01:49.2]} 35. g3 {[%clk 0:02:34.8]} 35... Rb8 {[%clk 0:01:43.9]} 36.
Qb2 {[%clk 0:02:33.3]} 36... f6 {[%clk 0:01:41.1]} 37. Qb3+ {[%clk 0:02:30.9]}
37... Kf8 {[%clk 0:01:38.6]} 38. Qe6 {[%clk 0:02:26]} 38... Qe7 {[%clk
0:01:37.3]} 39. Qf5 {[%clk 0:02:23.4]} 39... Be5 {[%clk 0:01:32.4]} 40. Bxe5
{[%clk 0:02:20.5]} 40... Qxe5 {[%clk 0:01:31.2]} 41. Qxh7 {[%clk 0:02:20.1]}
41... Kf7 {[%clk 0:01:26.7]} 42. Qd3 {[%clk 0:02:16.7]} 42... Qe8 {[%clk
0:01:21.2]} 43. Rb5 {[%clk 0:02:14.4]} 43... Rd8 {[%clk 0:01:14.8]} 44. Qb3+
{[%clk 0:02:08.5]} 44... Qe6 {[%clk 0:01:10.8]} 45. Qxe6+ {[%clk 0:02:06.8]}
45... Kxe6 {[%clk 0:01:10]} 46. Rxb6+ {[%clk 0:02:05.9]} 46... Rd6 {[%clk
0:01:06.6]} 47. Rb5 {[%clk 0:02:04.8]} 47... Rd1+ {[%clk 0:01:04.6]} 48. Kg2
{[%clk 0:02:03.4]} 48... Rc1 {[%clk 0:01:03.1]} 49. Rxa5 {[%clk 0:02:02.7]}
49... c4 {[%clk 0:01:02.2]} 50. Ra7 {[%clk 0:02:02.4]} 50... g5 {[%clk
0:00:57.6]} 51. h4 {[%clk 0:01:58.3]} 51... gxh4 {[%clk 0:00:55.6]} 52. gxh4
{[%clk 0:01:55.7]} 52... c3 {[%clk 0:00:55.5]} 53. h5 {[%clk 0:01:53.8]} 53...
c2 {[%clk 0:00:54.8]} 54. Rc7 {[%clk 0:01:53]} 54... Ra1 {[%clk 0:00:53.8]} 55.
Rxc2 {[%clk 0:01:49.8]} 55... Rxa4 {[%clk 0:00:52.5]} 56. Kg3 {[%clk 0:01:49.1]}
56... Kf5 {[%clk 0:00:46.8]} 57. Rc5+ {[%clk 0:01:45.8]} 57... Ke6 {[%clk
0:00:45.7]} 58. f4 {[%clk 0:01:40.6]} 58... Ra7 {[%clk 0:00:38.7]} 59. Kf3
{[%clk 0:01:37.6]} 59... Rh7 {[%clk 0:00:36]} 60. Ra5 {[%clk 0:01:34.5]} 60...
Rh6 {[%clk 0:00:34.8]} 61. e4 {[%clk 0:01:32]} 61... Kd6 {[%clk 0:00:32.3]} 62.
Kg4 {[%clk 0:01:28.7]} 62... Ke6 {[%clk 0:00:31.1]} 63. Rd5 {[%clk 0:01:24.5]}
63... Ke7 {[%clk 0:00:29.1]} 64. e5 {[%clk 0:01:16.4]} 64... fxe5 {[%clk
0:00:27.6]} 65. Rxe5+ {[%clk 0:01:15.2]} 65... Kf6 {[%clk 0:00:26.6]} 66. Ra5
{[%clk 0:01:12.2]} 66... Kf7 {[%clk 0:00:24.6]} 67. Ra7+ {[%clk 0:01:10.9]}
67... Kf8 {[%clk 0:00:15.6]} 68. Kg5 {[%clk 0:01:09.8]} 68... Rc6 {[%clk
0:00:14.2]} 69. f5 {[%clk 0:01:09]} 69... Rc1 {[%clk 0:00:12.6]} 70. h6 {[%clk
0:01:06.9]} 70... Rc6 {[%clk 0:00:09]} 71. h7 {[%clk 0:01:00.9]} 1-0

[Event "Live Chess"]
[Site "Chess.com"]
[Date "2023.05.21"]
[Round "-"]
[White "TKDRyan"]
[Black "whitedjohn"]
[Result "0-1"]
[WhiteElo "1137"]
[BlackElo "1639"]
[TimeControl "300"]
[EndTime "1:06:22 PDT"]
[Termination "whitedjohn won by resignation"]

1. e4 {[%clk 0:04:57.1]} 1... Nf6 {[%clk 0:04:58.7]} 2. Nc3 {[%clk 0:04:55]}
2... d5 {[%clk 0:04:57.4]} 3. exd5 {[%clk 0:04:51.8]} 3... Nxd5 {[%clk
0:04:56.3]} 4. Nxd5 {[%clk 0:04:50.1]} 4... Qxd5 {[%clk 0:04:55]} 5. Nf3 {[%clk
0:04:49.5]} 5... Bg4 {[%clk 0:04:53.2]} 6. Be2 {[%clk 0:04:46.5]} 6... Nc6
{[%clk 0:04:51.8]} 7. O-O {[%clk 0:04:45.2]} 7... O-O-O {[%clk 0:04:50.3]} 8. c3
{[%clk 0:04:40.6]} 8... e5 {[%clk 0:04:48.8]} 9. h3 {[%clk 0:04:35.5]} 9... Bh5
{[%clk 0:04:45.2]} 10. Nh4 {[%clk 0:04:20.4]} 10... Bxe2 {[%clk 0:04:43.3]} 11.
Qxe2 {[%clk 0:04:18.9]} 11... g6 {[%clk 0:04:35.1]} 12. b3 {[%clk 0:03:24.1]}
12... f5 {[%clk 0:04:31.4]} 13. Bb2 {[%clk 0:03:12]} 13... Qxd2 {[%clk
0:04:26.8]} 14. Qxd2 {[%clk 0:02:57.6]} 14... Rxd2 {[%clk 0:04:25.3]} 15. Rab1
{[%clk 0:02:55.8]} 15... Bg7 {[%clk 0:04:21.9]} 16. c4 {[%clk 0:02:53.9]} 16...
Rhd8 {[%clk 0:04:04.3]} 17. Nf3 {[%clk 0:02:52.4]} 17... Rxb2 {[%clk 0:03:57.2]}
18. Rxb2 {[%clk 0:02:38.7]} 18... e4 {[%clk 0:03:56]} 19. Re2 {[%clk 0:02:25.7]}
19... exf3 {[%clk 0:03:53.1]} 20. gxf3 {[%clk 0:02:25.6]} 20... Bf6 {[%clk
0:03:38.5]} 21. Rfe1 {[%clk 0:02:21.4]} 21... Nd4 {[%clk 0:03:29.2]} 22. Re3
{[%clk 0:02:09.9]} 22... Nc2 {[%clk 0:03:26.7]} 0-1

[Event "Live Chess"]
[Site "Chess.com"]
[Date "2023.05.21"]
[Round "-"]
[White "LGC4YOU"]
[Black "YrrriKharkiv"]
[Result "0-1"]
[WhiteElo "1185"]
[BlackElo "2079"]
[TimeControl "300"]
[EndTime "1:06:25 PDT"]
[Termination "YrrriKharkiv won by resignation"]

1. d4 {[%clk 0:04:57.5]} 1... Nf6 {[%clk 0:04:58.5]} 2. Nf3 {[%clk 0:04:56.5]}
2... c5 {[%clk 0:04:57.1]} 3. dxc5 {[%clk 0:04:55]} 3... g6 {[%clk 0:04:55.8]}
4. Bf4 {[%clk 0:04:53.6]} 4... Qa5+ {[%clk 0:04:53.8]} 5. Nbd2 {[%clk
0:04:46.2]} 5... Bg7 {[%clk 0:04:51.1]} 6. Be3 {[%clk 0:04:39.5]} 6... Nc6
{[%clk 0:04:45.5]} 7. g3 {[%clk 0:04:35]} 7... Ng4 {[%clk 0:04:43.5]} 8. Bg2
{[%clk 0:04:10.6]} 8... Nxe3 {[%clk 0:04:41.6]} 9. fxe3 {[%clk 0:04:07.7]} 9...
Qxc5 {[%clk 0:04:41.1]} 10. c3 {[%clk 0:03:57.8]} 10... Qxe3 {[%clk 0:04:35.5]}
11. Nc4 {[%clk 0:03:49.9]} 11... Qc5 {[%clk 0:04:34.6]} 12. Nfd2 {[%clk
0:03:39.8]} 12... O-O {[%clk 0:04:26.2]} 13. e3 {[%clk 0:03:38.6]} 13... b5
{[%clk 0:04:06.1]} 14. Ne4 {[%clk 0:03:28.3]} 14... Qf5 {[%clk 0:03:47.6]} 15.
Ncd2 {[%clk 0:03:19.3]} 15... d5 {[%clk 0:03:22.6]} 16. Rf1 {[%clk 0:03:16.9]}
16... Qe5 {[%clk 0:03:21]} 17. Nf3 {[%clk 0:03:10.4]} 17... Qh5 {[%clk
0:03:14.2]} 18. Nf2 {[%clk 0:02:52.3]} 18... Rd8 {[%clk 0:02:56.2]} 19. Nh3
{[%clk 0:02:50.4]} 19... Bxh3 {[%clk 0:02:53.8]} 20. Qe2 {[%clk 0:02:45.8]}
20... Bxg2 {[%clk 0:02:49.5]} 21. Qxg2 {[%clk 0:02:44.7]} 21... b4 {[%clk
0:02:47.3]} 22. g4 {[%clk 0:02:36]} 22... Qh6 {[%clk 0:02:46]} 23. O-O-O {[%clk
0:02:27]} 23... Qxe3+ {[%clk 0:02:44.3]} 24. Kb1 {[%clk 0:02:24.4]} 24... bxc3
{[%clk 0:02:42.9]} 25. Rfe1 {[%clk 0:02:20.1]} 25... Qb6 {[%clk 0:02:41]} 26. b3
{[%clk 0:02:13.7]} 26... a5 {[%clk 0:02:36.9]} 27. Rc1 {[%clk 0:02:11.8]} 27...
a4 {[%clk 0:02:35.4]} 28. Qc2 {[%clk 0:02:06.4]} 28... Nb4 {[%clk 0:02:34.4]}
29. Qxc3 {[%clk 0:02:03.9]} 29... Bxc3 {[%clk 0:02:31.3]} 30. Rxc3 {[%clk
0:02:02.6]} 30... axb3 {[%clk 0:02:29.5]} 31. Rxb3 {[%clk 0:02:01.8]} 31... Qf2
{[%clk 0:02:28.4]} 32. Rb2 {[%clk 0:01:31.3]} 32... Qxf3 {[%clk 0:02:23.8]} 33.
Rxb4 {[%clk 0:01:24.9]} 33... Qd3+ {[%clk 0:02:22]} 34. Ka1 {[%clk 0:01:12.1]}
34... Qc3+ {[%clk 0:02:20.3]} 35. Rb2 {[%clk 0:01:05.6]} 35... Qxe1+ {[%clk
0:02:18]} 36. Rb1 {[%clk 0:01:04.4]} 36... Qc3+ {[%clk 0:02:17.6]} 37. Rb2
{[%clk 0:01:02.9]} 37... Rdb8 {[%clk 0:02:16.4]} 0-1

[Event "Live Chess"]
[Site "Chess.com"]
[Date "2023.05.21"]
[Round "-"]
[White "JohanKjeldahl"]
[Black "Tiltador"]
[Result "1-0"]
[WhiteElo "1910"]
[BlackElo "761"]
[TimeControl "300"]
[EndTime "1:06:25 PDT"]
[Termination "JohanKjeldahl won by checkmate"]

1. e4 {[%clk 0:04:57.6]} 1... e5 {[%clk 0:04:58.3]} 2. Nf3 {[%clk 0:04:55.5]}
2... d6 {[%clk 0:04:56.6]} 3. d4 {[%clk 0:04:54.2]} 3... f6 {[%clk 0:04:55.3]}
4. Bc4 {[%clk 0:04:52.2]} 4... Ne7 {[%clk 0:04:49.9]} 5. O-O {[%clk 0:04:50.4]}
5... c6 {[%clk 0:04:48.7]} 6. Nc3 {[%clk 0:04:47.2]} 6... d5 {[%clk 0:04:47.6]}
7. exd5 {[%clk 0:04:45.3]} 7... Nxd5 {[%clk 0:04:45.4]} 8. dxe5 {[%clk
0:04:41.5]} 8... fxe5 {[%clk 0:04:39.3]} 9. Nxe5 {[%clk 0:04:38.7]} 9... Bc5
{[%clk 0:04:31]} 10. Nxd5 {[%clk 0:04:29.2]} 10... Be6 {[%clk 0:03:53.1]} 11.
Qh5+ {[%clk 0:04:24.3]} 11... g6 {[%clk 0:03:47]} 12. Nxg6 {[%clk 0:04:22.9]}
12... Bxd5 {[%clk 0:03:09.2]} 13. Nxh8+ {[%clk 0:04:20]} 13... Kd7 {[%clk
0:03:06.3]} 14. Qxh7+ {[%clk 0:04:10.1]} 14... Kc8 {[%clk 0:02:57.3]} 15. Qf5+
{[%clk 0:04:04.3]} 15... Nd7 {[%clk 0:02:53.7]} 16. Bxd5 {[%clk 0:04:01.4]}
16... cxd5 {[%clk 0:02:49.4]} 17. Nf7 {[%clk 0:03:54]} 17... Qf8 {[%clk
0:02:41.6]} 18. Qxd5 {[%clk 0:03:51.3]} 18... Qg7 {[%clk 0:02:12.4]} 19. Bf4
{[%clk 0:03:46]} 19... Qxb2 {[%clk 0:02:06.1]} 20. Rab1 {[%clk 0:03:41]} 20...
Qxb1 {[%clk 0:01:30.4]} 21. Rxb1 {[%clk 0:03:36.6]} 21... Rb8 {[%clk 0:01:20.1]}
22. Bxb8 {[%clk 0:03:26.4]} 22... Kxb8 {[%clk 0:01:15.7]} 23. Qxb7# {[%clk
0:03:22.3]} 1-0

[Event "Live Chess"]
[Site "Chess.com"]
[Date "2023.05.21"]
[Round "-"]
[White "Leonid_Starozhilov"]
[Black "BritishIsles"]
[Result "1-0"]
[WhiteElo "2660"]
[BlackElo "2414"]
[TimeControl "300"]
[EndTime "1:06:26 PDT"]
[Termination "Leonid_Starozhilov won by resignation"]

1. e4 {[%clk 0:04:58.9]} 1... d6 {[%clk 0:04:48.7]} 2. d4 {[%clk 0:04:56.4]}
2... Nf6 {[%clk 0:04:47.8]} 3. Nc3 {[%clk 0:04:54.9]} 3... g6 {[%clk 0:04:45.9]}
4. f4 {[%clk 0:04:53.6]} 4... Bg7 {[%clk 0:04:43.7]} 5. Nf3 {[%clk 0:04:52.9]}
5... c5 {[%clk 0:04:40.5]} 6. e5 {[%clk 0:04:45.3]} 6... Nfd7 {[%clk 0:04:16.7]}
7. e6 {[%clk 0:04:29.2]} 7... fxe6 {[%clk 0:04:12.7]} 8. Ng5 {[%clk 0:04:28.5]}
8... Nf6 {[%clk 0:04:08.3]} 9. Bb5+ {[%clk 0:04:22.5]} 9... Nc6 {[%clk
0:03:53.4]} 10. dxc5 {[%clk 0:04:20.4]} 10... O-O {[%clk 0:03:51.2]} 11. cxd6
{[%clk 0:04:18.5]} 11... exd6 {[%clk 0:03:49.7]} 12. O-O {[%clk 0:04:16.8]}
12... h6 {[%clk 0:03:26.6]} 13. Nf3 {[%clk 0:04:13.1]} 13... a6 {[%clk
0:02:51.7]} 14. Bd3 {[%clk 0:04:11.6]} 14... Nb4 {[%clk 0:02:49.4]} 15. Bxg6
{[%clk 0:04:07.6]} 1-0

[Event "Live Chess"]
[Site "Chess.com"]
[Date "2023.05.21"]
[Round "-"]
[White "Missedidea"]
[Black "Salpingidis"]
[Result "0-1"]
[WhiteElo "1835"]
[BlackElo "2224"]
[TimeControl "300"]
[EndTime "1:06:53 PDT"]
[Termination "Salpingidis won by resignation"]

1. d4 {[%clk 0:04:58.8]} 1... e6 {[%clk 0:04:57.4]} 2. c4 {[%clk 0:04:57.6]}
2... Nf6 {[%clk 0:04:56.7]} 3. Nc3 {[%clk 0:04:56.2]} 3... d5 {[%clk 0:04:56.3]}
4. Bg5 {[%clk 0:04:52.8]} 4... Be7 {[%clk 0:04:55.1]} 5. e3 {[%clk 0:04:51.6]}
5... h6 {[%clk 0:04:54.1]} 6. Bh4 {[%clk 0:04:49.6]} 6... O-O {[%clk 0:04:53.5]}
7. Nf3 {[%clk 0:04:48.3]} 7... b6 {[%clk 0:04:53]} 8. cxd5 {[%clk 0:04:44.7]}
8... Nxd5 {[%clk 0:04:52.9]} 9. Bd3 {[%clk 0:04:41.2]} 9... Bxh4 {[%clk
0:04:50.1]} 10. Nxh4 {[%clk 0:04:38.7]} 10... Qxh4 {[%clk 0:04:50]} 11. O-O
{[%clk 0:04:33.2]} 11... Bb7 {[%clk 0:04:47.5]} 12. Ne4 {[%clk 0:04:29.1]} 12...
Nd7 {[%clk 0:04:41.8]} 13. Ng3 {[%clk 0:04:26.5]} 13... N7f6 {[%clk 0:04:35.9]}
14. a3 {[%clk 0:04:24.1]} 14... Rad8 {[%clk 0:04:26.4]} 15. h3 {[%clk 0:04:20]}
15... Nxe3 {[%clk 0:04:22.5]} 16. fxe3 {[%clk 0:04:18.5]} 16... Qxg3 {[%clk
0:04:21.2]} 17. Qc2 {[%clk 0:04:13.6]} 17... Qxe3+ {[%clk 0:04:16]} 18. Kh2
{[%clk 0:04:09.9]} 18... Qxd4 {[%clk 0:04:14.4]} 19. Rad1 {[%clk 0:04:06.3]}
19... Qe5+ {[%clk 0:04:13.3]} 20. Kh1 {[%clk 0:04:03.2]} 20... Qg3 {[%clk
0:04:11.7]} 0-1